bitfinex/quotes_BTCUSD_20230831
["timestamp","ask_amount","ask_price","bid_price","bid_amount"]
[1693513052073,7.04192023,26162.0,26161.0,0.005]
[1693513052274,7.58736994,26162.0,26161.0,0.005]
[1693513052600,7.55160994,26162.0,26161.0,0.003]
[1693513052810,7.55136994,26162.0,26161.0,0.003]
[1693513053204,7.55136994,26162.0,26147.0,0.02]
[1693513053205,0.03364227,26151.0,26147.0,0.02]
[1693513053408,0.53375319,26150.0,26148.0,1.14729]
[1693513053612,0.64907319,26150.0,26148.0,0.573643]
[1693513053835,0.09978,26149.0,26148.0,0.573643]
[1693513054045,0.61813319,26149.0,26148.0,0.573643]
[1693513054247,0.47058085,26149.0,26148.0,0.573643]
[1693513054448,0.47298085,26149.0,26148.0,0.573643]
[1693513054622,0.47286085,26149.0,26148.0,0.573643]
[1693513054906,0.47280085,26149.0,26148.0,0.573643]
[1693513055130,0.47164085,26149.0,26148.0,0.574643]
[1693513055355,0.47158085,26149.0,26148.0,0.574643]
[1693513055564,0.48022085,26149.0,26148.0,0.574643]
[1693513055746,0.48094085,26149.0,26148.0,0.574643]
[1693513055974,0.47086085,26149.0,26148.0,0.574643]
[1693513056194,0.47476085,26149.0,26148.0,0.574643]
[1693513056378,0.49634085,26149.0,26148.0,0.574643]
[1693513056585,0.49628085,26149.0,26148.0,0.574643]
[1693513056794,0.49724085,26149.0,26148.0,0.574643]
[1693513056998,0.49564085,26149.0,26148.0,0.573643]
[1693513057130,0.49048085,26149.0,26148.0,0.573643]
[1693513057504,0.50466085,26149.0,26148.0,0.575643]
[1693513057759,0.50472085,26149.0,26148.0,0.575643]
[1693513057952,0.50466085,26149.0,26148.0,0.575643]
[1693513058330,0.50502085,26149.0,26148.0,0.575643]
[1693513058538,0.50496085,26149.0,26148.0,0.575643]
[1693513058733,0.50508085,26149.0,26148.0,0.575643]
[1693513059122,0.50616085,26149.0,26148.0,0.575643]
[1693513059318,0.73963116,26149.0,26148.0,0.575643]
[1693513059543,0.81684312,26149.0,26148.0,0.002]
[1693513059889,2.22760312,26149.0,26148.0,0.002]
[1693513060092,2.11238312,26149.0,26148.0,0.002]
[1693513060244,2.11136312,26149.0,26148.0,0.002]
[1693513060445,2.11286312,26149.0,26148.0,0.002]
[1693513060650,2.11430312,26149.0,26148.0,0.002]
[1693513060848,2.11202312,26149.0,26148.0,0.002]
[1693513061048,2.11208312,26149.0,26148.0,0.002]
[1693513061251,2.11346312,26149.0,26148.0,0.002]
[1693513061451,2.11238312,26149.0,26148.0,0.002]
[1693513061716,2.11130312,26149.0,26148.0,0.002]
[1693513061866,2.11142312,26149.0,26148.0,0.002]
[1693513062044,2.11286312,26149.0,26148.0,0.002]
[1693513062244,2.11472312,26149.0,26148.0,0.002]
[1693513062448,2.11142312,26149.0,26148.0,0.002]
[1693513062648,2.11040312,26149.0,26148.0,0.002]
[1693513062902,2.11016312,26149.0,26148.0,0.002]
[1693513063108,2.11022312,26149.0,26148.0,0.002]
[1693513063339,2.11118312,26149.0,26148.0,0.002]
[1693513063541,2.47789216,26149.0,26148.0,0.002]
[1693513063722,2.47783216,26149.0,26148.0,0.002]
[1693513064029,2.47789216,26149.0,26148.0,0.002]
[1693513064366,2.06506085,26149.0,26148.0,0.14907234]
[1693513064571,2.06506085,26149.0,26148.0,1.939571]
[1693513064572,1.5922,26149.0,26148.0,1.939571]
[1693513069723,1.5922,26149.0,26148.0,1.899571]
[1693513069958,0.036,26149.0,26148.0,1.899571]
[1693513070472,0.036,26149.0,26148.0,1.859571]
[1693513070673,0.50046085,26149.0,26148.0,1.149314]
[1693513070906,0.50994085,26149.0,26148.0,0.575657]
[1693513071112,0.50622085,26149.0,26148.0,0.575657]
[1693513071314,0.50340085,26149.0,26148.0,0.575657]
[1693513071471,0.50760085,26149.0,26148.0,0.575657]
[1693513071669,0.51180085,26149.0,26148.0,0.575657]
[1693513071873,0.52260405,26149.0,26148.0,0.575657]
[1693513072078,0.81708632,26149.0,26148.0,0.002]
[1693513072278,0.81216632,26149.0,26148.0,0.002]
[1693513072523,0.67848632,26149.0,26148.0,0.002]
[1693513072678,0.81228632,26149.0,26148.0,0.002]
[1693513072912,0.81180632,26149.0,26148.0,0.002]
[1693513073132,1.39624132,26149.0,26148.0,0.002]
[1693513073309,1.38712132,26149.0,26148.0,0.002]
[1693513073492,1.25458132,26149.0,26148.0,0.002]
[1693513073694,0.81132632,26149.0,26148.0,0.002]
[1693513073951,0.67752632,26149.0,26148.0,0.002]
[1693513074154,0.67722632,26149.0,26148.0,0.002]
[1693513074371,0.68106632,26149.0,26148.0,0.002]
[1693513074565,0.68100632,26149.0,26148.0,0.002]
[1693513074768,0.68028632,26149.0,26148.0,0.002]
[1693513074967,2.22634632,26149.0,26148.0,0.002]
[1693513075168,2.22628632,26149.0,26148.0,0.002]
[1693513075369,2.22622632,26149.0,26148.0,0.002]
[1693513075675,2.22592632,26149.0,26148.0,0.002]
[1693513075852,2.10566632,26149.0,26148.0,0.002]
[1693513076053,2.09996632,26149.0,26148.0,0.002]
[1693513076256,2.09642632,26149.0,26148.0,0.002]
[1693513076502,2.09276632,26149.0,26148.0,0.002]
[1693513076696,2.09036632,26149.0,26148.0,0.002]
[1693513076905,1.99340632,26149.0,26148.0,1.722971]
[1693513077019,1.62572547,26149.0,26148.0,1.722971]
[1693513080869,1.69946547,26149.0,26148.0,1.722971]
[1693513081072,1.62572547,26149.0,26148.0,1.722971]
[1693513081501,1.62572547,26149.0,26148.0,1.839571]
[1693513083130,1.5920832,26149.0,26148.0,1.839571]
[1693513085803,1.5920832,26149.0,26148.0,1.92592873]
[1693513089143,1.5920832,26149.0,26148.0,1.84592873]
[1693513093633,1.5920832,26149.0,26148.0,1.96592873]
[1693513096031,0.0358832,26149.0,26148.0,1.96592873]
[1693513101454,0.0358832,26149.0,26148.0,1.99611343]
[1693513106524,0.0358832,26149.0,26148.0,1.97611343]
[1693513108522,0.1974832,26149.0,26148.0,1.89611343]
[1693513111728,0.1974832,26149.0,26148.0,1.86592873]
[1693513112168,0.1974832,26149.0,26148.0,1.84592873]
[1693513112318,0.1974832,26149.0,26148.0,1.86592873]
[1693513113550,0.88771698,26149.0,26147.0,0.573679]
[1693513113784,0.4778555,26148.0,26146.0,0.019901]
[1693513113985,1.15824982,26148.0,26146.0,0.593598]
[1693513114189,0.11874,26147.0,26146.0,0.593598]
[1693513114364,0.48402085,26147.0,26146.0,0.593598]
[1693513114568,0.64474085,26147.0,26146.0,0.593598]
[1693513114768,0.7347755,26147.0,26146.0,0.593598]
[1693513115025,0.8517955,26147.0,26146.0,0.593598]
[1693513115197,0.8509555,26147.0,26146.0,0.593598]
[1693513115410,0.78262085,26147.0,26146.0,0.593598]
[1693513115614,0.79132085,26147.0,26146.0,0.019901]
[1693513115791,0.79270085,26147.0,26146.0,0.019901]
[1693513116236,1.02825332,26147.0,26146.0,0.019901]
[1693513116461,1.03341332,26147.0,26146.0,0.019901]
[1693513116588,1.02729332,26147.0,26146.0,0.019901]
[1693513116965,0.90793332,26147.0,26146.0,0.019901]
[1693513117118,0.90463332,26147.0,26146.0,0.593602]
[1693513117327,0.90463332,26147.0,26146.0,1.741004]
[1693513117328,0.25856,26147.0,26146.0,1.741004]
[1693513117528,0.2648,26147.0,26146.0,1.741004]
[1693513117703,0.26228,26147.0,26146.0,1.741004]
[1693513117907,0.26186,26147.0,26146.0,1.741004]
[1693513118213,0.25712,26147.0,26146.0,1.741004]
[1693513118380,0.25652,26147.0,26146.0,1.741004]
[1693513118581,0.25664,26147.0,26146.0,1.741004]
[1693513118787,0.1913,26147.0,26146.0,1.741004]
[1693513118991,0.25976,26147.0,26146.0,1.741004]
[1693513119150,0.26018,26147.0,26146.0,1.741004]
[1693513119349,0.27236,26147.0,26146.0,1.741004]
[1693513119715,0.2732,26147.0,26146.0,1.741004]
[1693513119887,0.27422,26147.0,26146.0,1.741004]
[1693513120091,0.27428,26147.0,26146.0,1.741004]
[1693513120286,0.27356,26147.0,26146.0,1.741004]
[1693513120875,0.27368,26147.0,26146.0,1.741004]
[1693513121072,0.2738,26147.0,26146.0,1.741004]
[1693513121294,0.27398,26147.0,26146.0,1.741004]
[1693513121456,0.2741,26147.0,26146.0,1.741004]
[1693513121656,0.27428,26147.0,26146.0,1.741004]
[1693513121863,0.2744,26147.0,26146.0,1.741004]
[1693513122066,0.27416,26147.0,26146.0,1.741004]
[1693513122282,0.27434,26147.0,26146.0,1.741004]
[1693513122476,0.27392,26147.0,26146.0,1.741004]
[1693513122683,0.27368,26147.0,26146.0,1.741004]
[1693513122974,0.27374,26147.0,26146.0,1.741004]
[1693513123183,0.269,26147.0,26146.0,1.741004]
[1693513123387,0.26828,26147.0,26146.0,1.741004]
[1693513123616,0.26744,26147.0,26146.0,1.857604]
[1693513123818,0.26744,26147.0,26146.0,2.11103407]
[1693513123819,0.031,26147.0,26146.0,2.11103407]
[1693513124020,0.031,26147.0,26146.0,2.00396173]
[1693513124786,0.031,26147.0,26146.0,2.15704173]
[1693513132760,0.031,26147.0,26146.0,2.18748496]
[1693513133058,0.009,26147.0,26146.0,2.18748496]
[1693513133441,0.1582,26151.0,26147.0,0.1]
[1693513133643,0.1582,26151.0,26150.0,0.1166]
[1693513133845,0.1582,26151.0,26150.0,1.263826]
[1693513134513,0.1582,26151.0,26150.0,2.411052]
[1693513134831,0.2302,26151.0,26150.0,2.411052]
[1693513135114,0.48315331,26151.0,26150.0,2.411052]
[1693513135339,0.44715331,26151.0,26150.0,2.411052]
[1693513136345,0.1942,26151.0,26150.0,2.411052]
[1693513136529,0.2302,26151.0,26150.0,2.411052]
[1693513138572,0.2302,26151.0,26150.0,2.294452]
[1693513139862,0.2202,26151.0,26150.0,2.294452]
[1693513141371,0.2202,26151.0,26150.0,2.91556292]
[1693513141372,0.072,26151.0,26150.0,2.91556292]
[1693513141578,0.09216941,26156.0,26155.0,0.00635773]
[1693513141579,0.26969476,26156.0,26155.0,0.00635773]
[1693513141779,0.26969476,26156.0,26155.0,2.56404607]
[1693513141997,0.44672333,26159.0,26155.0,2.41697373]
[1693513142224,0.4205,26158.0,26157.0,1.26352]
[1693513142425,0.4205,26158.0,26157.0,1.14692]
[1693513144204,0.4485,26158.0,26157.0,1.14992]
[1693513144406,0.4575,26158.0,26157.0,1.14992]
[1693513145517,0.4575,26158.0,26157.0,1.72338]
[1693513156658,0.4575,26158.0,26157.0,1.84633773]
[1693513156861,0.037,26158.0,26157.0,1.84633773]
[1693513158073,0.028,26158.0,26157.0,1.84633773]
[1693513158387,0.001,26158.0,26157.0,1.85333773]
[1693513158793,0.002,26158.0,26157.0,1.84333773]
[1693513158987,0.006,26158.0,26157.0,1.87933773]
[1693513159189,0.004,26158.0,26157.0,1.87933773]
[1693513159532,0.007,26158.0,26157.0,1.90433773]
[1693513159777,0.007,26158.0,26157.0,2.04433773]
[1693513159982,0.007,26158.0,26157.0,2.73201858]
[1693513160359,1.5562,26161.0,26160.0,0.00535773]
[1693513160703,1.5562,26161.0,26160.0,2.98892773]
[1693513161495,1.5592,26161.0,26160.0,2.98992773]
[1693513161671,1.5732,26161.0,26160.0,2.99192773]
[1693513162295,0.017,26161.0,26160.0,2.99192773]
[1693513165776,0.27459266,26161.0,26160.0,1.72853973]
[1693513165984,0.74811351,26161.0,26160.0,0.003]
[1693513166183,0.77601351,26161.0,26160.0,0.003]
[1693513166385,1.75702364,26161.0,26160.0,0.003]
[1693513166771,0.03364227,26158.0,26154.0,0.00635773]
[1693513166922,0.63135319,26157.0,26154.0,0.00635773]
[1693513167124,0.90545319,26157.0,26154.0,0.00635773]
[1693513167349,0.1011,26156.0,26154.0,0.00635773]
[1693513167695,0.46872085,26156.0,26154.0,0.00635773]
[1693513167829,0.35646099,26155.0,26154.0,0.57987273]
[1693513168032,0.35640099,26155.0,26154.0,1.15339673]
[1693513168227,0.35628099,26155.0,26154.0,1.15639673]
[1693513168471,0.35628099,26155.0,26154.0,1.15339673]
[1693513168472,0.35592099,26155.0,26154.0,1.15339673]
[1693513168664,0.35790099,26155.0,26154.0,1.15339673]
[1693513168973,0.37224099,26155.0,26154.0,1.15739673]
[1693513169188,0.36732099,26155.0,26154.0,1.15739673]
[1693513169390,0.36708099,26155.0,26154.0,1.15739673]
[1693513169685,0.36696099,26155.0,26154.0,1.15739673]
[1693513169880,0.36696099,26155.0,26154.0,1.15539673]
[1693513169881,0.36720099,26155.0,26154.0,1.15539673]
[1693513170122,0.36720099,26155.0,26154.0,0.002]
[1693513170123,1.24039336,26155.0,26154.0,0.002]
[1693513170329,2.56891512,26155.0,26154.0,0.003]
[1693513170480,2.12407112,26155.0,26154.0,0.003]
[1693513170662,2.12827112,26155.0,26154.0,0.003]
[1693513170858,2.12863112,26155.0,26154.0,0.003]
[1693513171060,0.03364227,26151.0,26147.0,0.58002773]
[1693513171278,0.03364227,26151.0,26147.0,1.15369173]
[1693513171279,0.51475319,26150.0,26147.0,1.15369173]
[1693513171479,1.03803319,26150.0,26147.0,1.15369173]
[1693513171679,0.0894,26149.0,26147.0,1.15369173]
[1693513171899,0.0891,26149.0,26147.0,1.15369173]
[1693513172101,0.24452,26149.0,26147.0,1.15869173]
[1693513172421,0.0702,26148.0,26147.0,1.15869173]
[1693513172721,0.07014,26148.0,26147.0,1.15369173]
[1693513172933,0.07986,26148.0,26147.0,1.15369173]
[1693513173152,0.23612,26149.0,26147.0,1.15369173]
[1693513173334,0.06744,26148.0,26147.0,1.15569173]
[1693513173482,0.06906,26148.0,26147.0,1.15569173]
[1693513173686,0.23474,26149.0,26147.0,1.15369173]
[1693513173887,0.001,26148.0,26147.0,1.16769173]
[1693513174288,0.06928,26148.0,26147.0,1.16569173]
[1693513174511,0.0655,26148.0,26147.0,1.16569173]
[1693513174719,0.002,26148.0,26147.0,1.17069173]
[1693513175185,0.06632,26148.0,26147.0,1.17069173]
[1693513175358,0.002,26148.0,26147.0,1.17069173]
[1693513179104,0.002,26148.0,26147.0,1.74437073]
[1693513181169,0.22352,26149.0,26147.0,1.74437073]
[1693513181401,0.59126085,26149.0,26147.0,1.74437073]
[1693513181602,0.59006085,26149.0,26147.0,1.74437073]
[1693513181782,0.59012085,26149.0,26147.0,1.74437073]
[1693513181944,0.58898085,26149.0,26147.0,1.74437073]
[1693513182305,0.58856085,26149.0,26147.0,1.73237073]
[1693513182512,0.0698,26149.0,26147.0,1.88044307]
[1693513182716,0.002,26149.0,26148.0,0.12295773]
[1693513182946,0.002,26149.0,26148.0,1.84392873]
[1693513183364,0.011,26149.0,26148.0,1.84392873]
[1693513183747,0.002,26149.0,26148.0,1.84392873]
[1693513183947,0.009,26149.0,26148.0,1.84592873]
[1693513184163,0.009,26149.0,26148.0,1.84692873]
[1693513184164,0.011,26149.0,26148.0,1.84692873]
[1693513191319,0.011,26149.0,26148.0,1.88692873]
[1693513191621,0.011,26149.0,26148.0,2.61288258]
[1693513192022,0.002,26149.0,26148.0,2.61088258]
[1693513192457,0.002,26149.0,26148.0,2.62788258]
[1693513192605,0.006,26149.0,26148.0,2.66388258]
[1693513192807,0.004,26149.0,26148.0,2.60988258]
[1693513193008,1.1593,26155.0,26152.0,0.00635773]
[1693513193254,1.92080227,26156.0,26154.0,0.1166]
[1693513193255,1.91846227,26156.0,26154.0,0.1166]
[1693513193508,0.1576,26155.0,26154.0,0.83718034]
[1693513193768,0.1576,26155.0,26154.0,1.263634]
[1693513194205,0.1576,26155.0,26154.0,1.84351773]
[1693513194503,1.8507,26156.0,26154.0,1.84551773]
[1693513195583,0.01,26155.0,26154.0,1.84351773]
[1693513196189,1.8357,26156.0,26154.0,1.84351773]
[1693513196388,0.002,26155.0,26154.0,1.84751773]
[1693513196869,0.002,26155.0,26154.0,1.84451773]
[1693513197076,0.012,26155.0,26154.0,1.84651773]
[1693513197284,0.01,26155.0,26154.0,1.84551773]
[1693513197485,0.1635,26155.0,26154.0,1.84751773]
[1693513198794,0.1635,26155.0,26154.0,1.84551773]
[1693513199159,0.1655,26155.0,26154.0,1.84651773]
[1693513203987,0.1655,26155.0,26154.0,1.72991773]
[1693513204150,0.1655,26155.0,26154.0,1.84651773]
[1693513206139,0.55177554,26155.0,26154.0,1.15639173]
[1693513206342,0.55177554,26155.0,26154.0,0.58286573]
[1693513206343,0.55717554,26155.0,26154.0,0.58286573]
[1693513206547,0.55645554,26155.0,26154.0,0.58286573]
[1693513206737,0.55201554,26155.0,26154.0,0.58286573]
[1693513206947,0.55123554,26155.0,26154.0,0.58286573]
[1693513207147,0.55093554,26155.0,26154.0,0.58286573]
[1693513207344,0.55075554,26155.0,26154.0,0.576508]
[1693513207550,0.55171554,26155.0,26154.0,0.58286573]
[1693513207723,0.54421554,26155.0,26154.0,0.58286573]
[1693513207927,0.54415554,26155.0,26154.0,0.58286573]
[1693513208132,0.54391554,26155.0,26154.0,0.58286573]
[1693513208296,0.54343554,26155.0,26154.0,0.58286573]
[1693513208707,0.54331554,26155.0,26154.0,0.58286573]
[1693513208960,0.54313554,26155.0,26154.0,1.15639173]
[1693513209202,0.54355554,26155.0,26154.0,1.15639173]
[1693513209393,0.54331554,26155.0,26154.0,1.15639173]
[1693513209634,0.54179554,26155.0,26154.0,1.15639173]
[1693513209908,0.54341554,26155.0,26154.0,0.58286573]
[1693513210113,0.54251554,26155.0,26154.0,0.58286573]
[1693513210342,0.54215554,26155.0,26154.0,1.15639173]
[1693513210529,0.53813554,26155.0,26154.0,1.15639173]
[1693513210722,0.53777554,26155.0,26154.0,1.15639173]
[1693513210923,0.54371554,26155.0,26154.0,1.15639173]
[1693513211130,0.54335554,26155.0,26154.0,1.15639173]
[1693513211307,0.91043639,26155.0,26154.0,0.58286573]
[1693513211507,0.92387639,26155.0,26154.0,0.58286573]
[1693513211712,0.91859639,26155.0,26154.0,0.58286573]
[1693513211873,0.91517639,26155.0,26154.0,0.58286573]
[1693513212072,0.91709639,26155.0,26154.0,0.58286573]
[1693513212439,0.92021639,26155.0,26154.0,0.58286573]
[1693513212587,0.91967639,26155.0,26154.0,0.576508]
[1693513212807,0.91949639,26155.0,26154.0,0.58286573]
[1693513213032,0.92057639,26155.0,26154.0,0.58286573]
[1693513213209,0.92027639,26155.0,26154.0,0.58286573]
[1693513213413,0.92135639,26155.0,26154.0,0.58286573]
[1693513213754,0.90947639,26155.0,26154.0,0.58286573]
[1693513213947,0.90821639,26155.0,26154.0,0.58286573]
[1693513214132,0.90917639,26155.0,26154.0,1.15639173]
[1693513214354,0.90959639,26155.0,26154.0,1.15639173]
[1693513214540,0.90941639,26155.0,26154.0,1.15639173]
[1693513214719,0.91277639,26155.0,26154.0,1.15639173]
[1693513214912,0.90083639,26155.0,26154.0,1.15639173]
[1693513215269,0.89909639,26155.0,26154.0,1.15639173]
[1693513215458,0.89897639,26155.0,26154.0,1.15639173]
[1693513215598,0.89879639,26155.0,26154.0,1.15639173]
[1693513215803,0.89861639,26155.0,26154.0,1.15639173]
[1693513215999,0.89843639,26155.0,26154.0,1.15639173]
[1693513216587,0.89825639,26155.0,26154.0,1.15639173]
[1693513216752,0.83159639,26155.0,26154.0,1.15639173]
[1693513218152,0.89609639,26155.0,26154.0,1.15639173]
[1693513218450,0.89933639,26155.0,26154.0,1.15639173]
[1693513218647,0.91529639,26155.0,26154.0,0.58286573]
[1693513218847,0.91517639,26155.0,26154.0,0.58286573]
[1693513219070,0.91487639,26155.0,26154.0,0.58286573]
[1693513219276,0.91445639,26155.0,26154.0,0.58286573]
[1693513219479,0.91349639,26155.0,26154.0,0.58286573]
[1693513219678,0.91595639,26155.0,26154.0,1.15639173]
[1693513219878,0.91535639,26155.0,26154.0,1.15639173]
[1693513220123,0.89795639,26155.0,26154.0,1.15639173]
[1693513220238,0.53118085,26155.0,26154.0,1.72991773]
[1693513220437,0.1635,26155.0,26154.0,1.84651773]
[1693513221680,0.1635,26155.0,26154.0,1.27299173]
[1693513221681,0.53118085,26155.0,26154.0,1.27299173]
[1693513221854,0.86984946,26155.0,26154.0,1.15639173]
[1693513222050,0.86474946,26155.0,26154.0,1.15639173]
[1693513222316,0.86480946,26155.0,26154.0,1.15639173]
[1693513222475,0.86438946,26155.0,26154.0,1.15639173]
[1693513222676,0.86432946,26155.0,26154.0,1.15639173]
[1693513222874,0.86444946,26155.0,26154.0,1.15639173]
[1693513223100,0.53118085,26155.0,26154.0,1.15639173]
[1693513223942,0.1635,26155.0,26154.0,1.84651773]
[1693513224139,0.01,26155.0,26154.0,1.84651773]
[1693513228354,1.40768593,26160.0,26158.0,0.00535773]
[1693513228355,1.08857465,26160.0,26158.0,0.00535773]
[1693513228551,1.08857465,26160.0,26154.0,2.24784085]
[1693513228552,0.09117465,26160.0,26159.0,2.56269407]
[1693513228752,0.09117465,26161.0,26159.0,2.56269407]
[1693513228979,0.09117465,26161.0,26160.0,0.12195773]
[1693513229226,0.09117465,26161.0,26160.0,1.84213973]
[1693513229420,0.24557465,26161.0,26160.0,1.84213973]
[1693513230860,0.24657465,26161.0,26160.0,1.84813973]
[1693513231060,0.001,26161.0,26160.0,1.84813973]
[1693513231574,0.001,26161.0,26160.0,2.30473973]
[1693513231900,0.002,26161.0,26160.0,2.31673973]
[1693513232133,0.002,26161.0,26160.0,2.20013973]
[1693513232957,0.02383397,26161.0,26160.0,2.20013973]
[1693513238921,0.06564,26166.0,26164.0,0.00535773]
[1693513239091,0.06588,26166.0,26165.0,1.146568]
[1693513239331,0.06582,26166.0,26165.0,1.146568]
[1693513239535,0.67237224,26166.0,26164.0,0.00535773]
[1693513239732,0.42965172,26167.0,26164.0,0.57866373]
[1693513239733,0.36768085,26165.0,26164.0,0.57866373]
[1693513239911,0.07116,26165.0,26164.0,1.15196973]
[1693513240116,0.39525128,26167.0,26164.0,1.72527573]
[1693513240365,0.36768085,26166.0,26164.0,1.72527573]
[1693513240703,0.40368085,26166.0,26164.0,1.72827573]
[1693513240908,0.68108085,26166.0,26164.0,1.72827573]
[1693513241084,0.3134,26166.0,26164.0,1.72827573]
[1693513241586,0.53306,26166.0,26165.0,1.146568]
[1693513241820,0.53114,26166.0,26165.0,1.146568]
[1693513242029,0.53108,26166.0,26165.0,1.146568]
[1693513242234,0.53066,26166.0,26165.0,1.146568]
[1693513242409,0.4652,26166.0,26165.0,1.146568]
[1693513242838,0.4292,26166.0,26165.0,1.146568]
[1693513243062,0.4652,26166.0,26165.0,1.150568]
[1693513243267,0.5012,26166.0,26165.0,1.15892573]
[1693513243848,0.56558,26166.0,26165.0,1.15892573]
[1693513244078,0.56564,26166.0,26165.0,1.15892573]
[1693513244261,0.5012,26166.0,26165.0,1.73220973]
[1693513245098,0.56876,26166.0,26165.0,1.73220973]
[1693513245399,0.57032,26166.0,26165.0,1.73220973]
[1693513245595,0.5012,26166.0,26165.0,1.73220973]
[1693513245943,0.56834,26166.0,26165.0,1.73220973]
[1693513246140,0.5012,26166.0,26165.0,1.73220973]
[1693513246541,0.51894803,26166.0,26165.0,1.73220973]
[1693513247207,0.58380803,26166.0,26165.0,1.73220973]
[1693513247414,0.51894803,26166.0,26165.0,1.73220973]
[1693513249798,0.51894803,26166.0,26165.0,1.84880973]
[1693513250159,0.08974803,26166.0,26165.0,1.84880973]
[1693513250775,0.05374803,26166.0,26165.0,1.84480973]
[1693513250979,0.9974,26170.0,26169.0,0.00535773]
[1693513251248,0.9974,26170.0,26169.0,2.56181807]
[1693513251450,0.18556385,26175.0,26171.0,0.00535773]
[1693513251622,0.2543,26173.0,26172.0,2.43958234]
[1693513251821,0.161,26174.0,26172.0,2.55618234]
[1693513252022,0.4153,26174.0,26173.0,0.1166]
[1693513252225,0.4153,26174.0,26173.0,1.84128473]
[1693513254359,0.4313,26174.0,26173.0,1.84128473]
[1693513254592,0.2543,26174.0,26173.0,1.84128473]
[1693513254803,0.02,26175.0,26174.0,0.00535773]
[1693513255013,0.02,26175.0,26174.0,1.84121873]
[1693513255366,0.02,26175.0,26174.0,1.86121873]
[1693513255969,0.021,26175.0,26174.0,1.87221873]
[1693513256145,0.02,26175.0,26174.0,1.86121873]
[1693513257788,0.02,26175.0,26174.0,2.16121873]
[1693513258101,0.02,26175.0,26174.0,2.35521873]
[1693513258102,0.026,26175.0,26174.0,2.35521873]
[1693513258255,0.023,26175.0,26174.0,2.70589958]
[1693513258681,0.026,26175.0,26174.0,2.74289958]
[1693513259888,0.026,26175.0,26174.0,2.85949958]
[1693513260091,0.026,26175.0,26174.0,2.77949958]
[1693513260345,0.026,26175.0,26174.0,2.85949958]
[1693513261301,0.026,26175.0,26174.0,2.66289958]
[1693513262102,0.026,26175.0,26174.0,2.66176302]
[1693513265765,0.026,26175.0,26174.0,2.66276302]
[1693513266983,0.026,26175.0,26174.0,2.27508217]
[1693513274890,0.026,26175.0,26174.0,1.97508217]
[1693513275089,0.026,26175.0,26174.0,2.27508217]
[1693513280515,0.026,26175.0,26174.0,2.21508217]
[1693513280931,0.026,26175.0,26174.0,2.23508217]
[1693513283820,0.11074385,26185.0,26176.0,0.402]
[1693513284033,0.02,26185.0,26184.0,0.77817117]
[1693513284252,0.02,26188.0,26187.0,0.18522117]
[1693513284459,0.2567,26191.0,26190.0,0.02522117]
[1693513284706,0.1824,26194.0,26190.0,0.74503051]
[1693513284923,0.1824,26194.0,26192.0,0.02522117]
[1693513285124,0.1824,26194.0,26192.0,1.55087951]
[1693513285334,0.02,26194.0,26192.0,1.09319485]
[1693513285537,0.02,26194.0,26192.0,1.8709]
[1693513285746,0.02,26194.0,26193.0,0.1166]
[1693513285947,0.02,26194.0,26193.0,1.834616]
[1693513287135,0.2624,26199.0,26193.0,2.31889685]
[1693513287331,0.3224,26199.0,26198.0,0.1166]
[1693513287529,0.3224,26199.0,26198.0,1.834286]
[1693513287728,0.3224,26199.0,26198.0,2.406848]
[1693513288163,0.3454,26199.0,26198.0,2.406848]
[1693513288602,0.3224,26199.0,26198.0,2.406848]
[1693513288803,0.3244,26199.0,26198.0,2.443848]
[1693513289012,0.3224,26199.0,26198.0,2.406848]
[1693513289156,0.15955831,26199.0,26198.0,2.406848]
[1693513289673,0.15955831,26199.0,26198.0,2.443848]
[1693513290297,0.16155831,26199.0,26198.0,2.480848]
[1693513293672,0.8838115,26199.0,26198.0,0.074]
[1693513293901,0.15955831,26192.0,26191.0,1.145416]
[1693513294104,0.15955831,26191.0,26190.0,0.572717]
[1693513294280,0.07955831,26198.0,26190.0,1.62973485]
[1693513294478,0.09955831,26198.0,26194.0,0.00044169]
[1693513294751,0.09955831,26198.0,26191.0,0.36768085]
[1693513294752,0.09955831,26198.0,26197.0,0.1166]
[1693513294886,0.09955831,26198.0,26197.0,1.261768]
[1693513295089,0.09955831,26198.0,26197.0,2.406936]
[1693513295293,0.09955831,26198.0,26197.0,2.706936]
[1693513295697,0.10255831,26198.0,26197.0,2.706936]
[1693513295978,0.10555831,26198.0,26197.0,2.743936]
[1693513297193,0.83705101,26198.0,26197.0,1.754752]
[1693513297395,0.91031101,26198.0,26197.0,1.754752]
[1693513297598,0.90119101,26198.0,26197.0,1.754752]
[1693513297752,0.83705101,26198.0,26197.0,1.791752]
[1693513297953,0.81705101,26198.0,26197.0,1.791752]
[1693513298159,0.83705101,26198.0,26197.0,1.791752]
[1693513298910,0.55323916,26198.0,26197.0,1.791752]
[1693513299326,0.86085848,26198.0,26197.0,1.791752]
[1693513299998,0.18555831,26198.0,26197.0,1.791752]
[1693513301674,0.18055831,26198.0,26197.0,1.791752]
[1693513301887,0.12055831,26198.0,26197.0,1.791752]
[1693513302087,0.16055831,26198.0,26197.0,1.908352]
[1693513302468,0.16055831,26198.0,26197.0,1.791752]
[1693513305500,0.02,26201.0,26197.0,2.57847454]
[1693513305698,0.02,26201.0,26200.0,0.2332]
[1693513305911,0.02,26201.0,26200.0,2.823276]
[1693513306075,0.02,26201.0,26200.0,3.279195]
[1693513306663,0.09755831,26201.0,26200.0,2.504235]
[1693513307025,0.09755831,26201.0,26200.0,2.540235]
[1693513307026,0.10055831,26201.0,26200.0,2.540235]
[1693513307637,0.10355831,26201.0,26200.0,2.540235]
[1693513308056,0.10055831,26201.0,26200.0,2.540235]
[1693513308498,0.10355831,26201.0,26200.0,2.577235]
[1693513309092,0.026,26201.0,26200.0,2.577235]
[1693513309278,0.10355831,26201.0,26200.0,2.693835]
[1693513311485,0.10355831,26201.0,26200.0,2.577235]
[1693513316410,0.36621427,26201.0,26200.0,2.577235]
[1693513316584,0.43635427,26201.0,26200.0,2.363076]
[1693513316786,0.43833427,26201.0,26200.0,2.363076]
[1693513316988,0.19279831,26201.0,26200.0,2.363076]
[1693513317200,0.12355831,26201.0,26200.0,2.363076]
[1693513321381,0.74605753,26201.0,26200.0,1.790557]